Cogmind - Beta 10.1 @@@ ROGUE MODE // 2020.10.09 @ 16:32:39 Player: Demise Result: Destroyed by S-10 Pest with Light Assault Rifle Performance ------------- Evolutions (0) 0 Regions Visited (2) 400 Robots Destroyed (51) 255 Value Destroyed (1114) 1114 Prototype IDs (2) 40 Alien Tech Used (0) 0 Bonus (-21) -21 TOTAL SCORE: 1788 Bonus ------- Friendly Fire -21 Cogmind --------- Core Integrity 0/250 Matter 288/300 Energy 250/250 System Corruption 0% Temperature Cool (30) Movement Walking (210) Ox3 Location -10/Mines Parts ------- > --- POWER (1) -------- Ion Engine > --- PROPULSION (2) --- Aluminum Leg Aluminum Leg > --- UTILITY (2) ------ High-capacity Storage Unit High-capacity Storage Unit > --- WEAPON (2) ------- Small Laser Light Cannon > --- INVENTORY (20) --- Ion Engine Light Nuclear Core Cooling System Large Storage Unit Large Storage Unit High-capacity Storage Unit Medium Battery (200) Large Matter Pod (150) Improved Terrain Scanner Terrain Scan Processor Medium Armor Plating Medium Armor Plating Medium Armor Plating Bomb Drone Bay Small Laser Particle Gun Mini Grenade Launcher Mining Laser Plasma Cutter Peak State ------------ > --- POWER ------------ Light Nuclear Core > --- PROPULSION ------- Light Treads Light Treads > --- UTILITY ---------- High-capacity Storage Unit High-capacity Storage Unit > --- WEAPON ----------- EM Pulse Gun Small Laser > --- INVENTORY -------- Ion Engine Cooling System Large Storage Unit Large Storage Unit High-capacity Storage Unit Medium Battery Large Matter Pod Improved Terrain Scanner Terrain Scan Processor Medium Armor Plating Medium Armor Plating Medium Armor Plating Bomb Drone Bay Assault Rifle Assault Rifle Light Cannon Mini Grenade Launcher Mining Laser Plasma Cutter [Rating: 13] Favorites ----------- Power Ion Engine Engine Ion Engine Power Core Light Nuclear Core Propulsion Light Treads Treads Light Treads Leg Aluminum Leg Utility High-capacity Storage Unit Device Improved Terrain Scanner Storage High-capacity Storage Unit Weapon EM Pulse Gun Energy Gun EM Pulse Gun Ballistic Gun Assault Rifle Ballistic Cannon Light Cannon Special Weapon Mining Laser Build | -11 -10 -10 ------- Run | Scr Mat Min Slots Evolved . | . . . Power . | . . . Propulsion . | . . . Utility . | . . . Weapon . | . . . Parts Attached 39 | 4 10 25 Power 6 | . 1 5 Engine 5 | . 1 4 Core 1 | . . 1 Reactor . | . . . Propulsion 12 | 2 1 9 Treads 4 | 2 1 1 Leg 8 | . . 8 Wheel . | . . . Hover . | . . . Flight . | . . . Utility 4 | 2 2 . Device 2 | 2 . . Storage 2 | . 2 . Processor . | . . . Hackware . | . . . Protection . | . . . Artifact . | . . . Weapon 17 | . 6 11 Energy Gun 12 | . 4 8 Energy Cannon . | . . . Ballistic Gun 2 | . . 2 Ballistic Cannon 1 | . . 1 Launcher . | . . . Special Weapon 2 | . 2 . Impact Weapon . | . . . Slashing Weapon . | . . . Piercing Weapon . | . . . Special Melee Weapon . | . . . Unidentified Prototypes . | . . . Parts Lost 13 | . . 13 Power 1 | . . 1 Propulsion 3 | . . 3 Utility . | . . . Weapon 9 | . . 9 Highest Loss Streak 3 | . . 3 Average Slot Usage (%) 95 | . 100 90 Engine 12 | . 14 10 Core 1 | . . 3 Treads 18 | . 28 9 Leg 6 | . . 14 Device 1 | . 3 . Storage 26 | . 24 28 Energy Gun 19 | . 21 17 Ballistic Gun 4 | . 3 5 Special Weapon 1 | . 2 . Naked Turns . | . . . Heaviest Build 73 | 12 73 73 Greatest Support 40 | 40 40 40 Greatest Overweight (x) 23 | . 1 23 Average Overweight (x) 1 | . . 2 Largest Inventory Capacity 20 | 6 20 20 Average Capacity 17 | 6 17 20 Most Carried 20 | 6 20 20 Average Carried 17 | 5 16 19 Final Capacity 20 | 6 20 20 Final Carried 20 | 6 20 20 Class Distribution -------------------- 76% | Hauler-Mutant 16% | Mutant 7% | Scavenger-Mutant Dominant Class ---------------- Hauler-Mutant | -10/Materials Hauler-Mutant | -10/Mines Resources | -11 -10 -10 ----------- Run | Scr Mat Min Matter Collected 1044 | 397 289 358 Remotely . | . . . Salvage Created 1606 | 203 532 871 Parts 112 | 20 50 42 Haulers Intercepted 2 | . 2 . Recyclers Shooed . | . . . Parts Field Recycled . | . . . Retrieved Matter . | . . . Parts Self-Destructed . | . . . Prevented . | . . . Kills | -11 -10 -10 ------- Run | Scr Mat Min Combat Hostiles Destroyed 36 | . 16 20 Guns 31 | . 16 15 Cannons 5 | . . 5 Classes Destroyed 7 | 3 4 . Worker 3 | 2 . 1 Tunneler 6 | 5 . 1 Hauler 2 | . 2 . Recycler 1 | 1 . . Watcher 3 | . 3 . Swarmer 12 | . 12 . Grunt 24 | . 4 20 Best Kill Streak 6 | 3 4 6 Combat Bots Only 6 | . 4 6 Max Kills in Single Turn 2 | 1 2 1 Gunslinging 1 | . 1 . Exploded . | . . . Melee . | . . . Uniques/NPCs Destroyed . | . . . Combat | -11 -10 -10 -------- Run | Scr Mat Min Damage Taken 1774 | . 427 1347 Core 256 | . 50 206 Absorbed by Shields . | . . . Core Remaining (%) 100 | 100 . . Volleys Fired 158 | 19 46 93 Largest 2 | 2 2 2 Hottest 105 | 70 100 105 Shots Fired 279 | 38 84 157 Gun 253 | 38 76 139 Cannon 18 | . . 18 Launcher . | . . . Special 8 | . 8 . Kinetic 77 | 19 14 44 Thermal 125 | 19 33 73 Explosive . | . . . Electromagnetic 77 | . 37 40 Robot Hit Streak 18 | 9 10 18 Robot Miss Streak 3 | 3 3 3 Penetration Max . | . . . Secondary Targets 3 | . 2 1 Max Gunslinging Chain 1 | . 1 1 Shots Hit Robots 188 | 23 50 115 Core Hits 77 | 9 26 42 Critical Hits . | . . . Critical Kills . | . . . Critical Parts Destroyed . | . . . Melee Attacks . | . . . Impact . | . . . Slashing . | . . . Piercing . | . . . Sneak Attacks . | . . . Combat Hostiles . | . . . Follow-up Attacks . | . . . Damage Inflicted 2486 | 277 681 1528 Guns 2165 | 277 622 1266 Cannons 158 | . . 158 Explosions 162 | . 59 103 Melee . | . . . Ramming 1 | . . 1 Kinetic 610 | 130 72 408 Thermal 1078 | 147 249 682 Explosive . | . . . Electromagnetic 797 | . 360 437 Impact . | . . . Slashing . | . . . Piercing . | . . . Highest Corruption . | . . . Average Corruption . | . . . Corruption Purged . | . . . Overload Shots . | . . . Overflow Damage . | . . . Projectiles . | . . . Explosions . | . . . Melee . | . . . Knockbacks . | . . . Impact . | . . . Kinetic . | . . . Secondary . | . . . Self-Inflicted Damage 45 | . . 45 Shots 2 | . . 2 Rammed . | . . . Targets Rammed 1 | . . 1 Kicked 1 | . . 1 Crushed . | . . . Highest Temperature 381 | 72 180 381 Average Temperature 70 | 31 42 96 Received Heat Transfer 783 | . 84 699 Siege Activations . | . . . Robots Corrupted . | . . . Combat Hostiles . | . . . Parts Fried 6 | . 5 1 Impact Corruptions . | . . . Robots Melted . | . . . Combat Hostiles . | . . . Parts Melted 3 | . 2 1 Heat Transferred 2623 | 444 655 1524 Parts Sabotaged . | . . . Parts Stolen . | . . . Parts Stripped . | . . . Power Chain Reactions 3 | . 1 2 Missiles Intercepted . | . . . Alert | -11 -10 -10 ------- Run | Scr Mat Min Peak Influence 180 | 40 180 155 Initial 40 | . 26 40 Average 76 | 20 97 59 Maximum Alert Level . | . . . Low Security (%) 100 | 100 100 100 Level 1 . | . . . Level 2 . | . . . Level 3 . | . . . Level 4 . | . . . Level 5 . | . . . High Security . | . . . Max Security . | . . . Squads Dispatched 1 | . 1 . Investigation . | . . . Extermination . | . . . Reinforcement 1 | . 1 . Assault . | . . . Garrison . | . . . Intercept . | . . . Construction Impeded . | . . . Haulers Reinforced . | . . . Stealth | -11 -10 -10 --------- Run | Scr Mat Min Distress Signals 1 | . 1 . Communications Jammed . | . . . Distress Signals . | . . . Times Spotted 51 | . 23 28 Peak Tracking Total 4 | . 4 4 Tactical Retreats 6 | . 3 3 Traps | -11 -10 -10 ------- Run | Scr Mat Min Traps Triggered . | . . . Indirectly . | . . . Trap Hack Attempts . | . . . Triggered . | . . . Disarmed . | . . . Reprogrammed . | . . . Reused . | . . . Traps Extracted . | . . . Installed . | . . . Triggered . | . . . Machines | -11 -10 -10 ---------- Run | Scr Mat Min Machines Disabled 1 | . . 1 Max in Single Turn 1 | . . 1 Machines Sabotaged . | . . . Garrisons Compromised . | . . . Overloaded Fab Kills . | . . . Fab Network Shutdowns . | . . . Hacking | -11 -10 -10 --------- Run | Scr Mat Min Machines Accessed 9 | . 8 1 Terminals 7 | . 7 . Fabricators . | . . . Repair Stations 1 | . 1 . Recycling Units . | . . . Scanalyzers . | . . . Garrison Access . | . . . Total Hacks 24 | . 23 1 Successful 13 | . 12 1 Failed 11 | . 11 . Catastrophic 1 | . 1 . Database Lockouts . | . . . Manual 15 | . 15 . Terminals 20 | . 20 . Fabricators . | . . . Repair Stations 3 | . 3 . Recycling Units . | . . . Scanalyzers . | . . . Garrison Access . | . . . Terminal Hacks 6 | . 5 1 Part Schematic 1 | . 1 . Robot Analysis 1 | . 1 . Prototype ID Bank 1 | . 1 . Open Door 1 | . . 1 Locate Traps 1 | . 1 . Zone Layout 1 | . 1 . Fabricator Hacks . | . . . Repair Station Hacks 1 | . 1 . Scan Component 1 | . 1 . Recycling Unit Hacks . | . . . Scanalyzer . | . . . Garrison Access Hacks . | . . . Unauthorized Hacks 6 | . 6 . Terminals 6 | . 6 . Assimilate 1 | . 1 . Botnet 4 | . 4 . Operators 1 | . 1 . Fabricators . | . . . Repair Stations . | . . . Recycling Units . | . . . Scanalyzers . | . . . Garrison Access . | . . . Data Cores Recovered . | . . . Used . | . . . Hacking Detections 7 | . 7 . Full Trace Events 1 | . 1 . Feedback Events . | . . . Feedback Blocked . | . . . Robot Schematics Acquired . | . . . Robots Built . | . . . Matter . | . . . Time . | . . . Total Robot Build Rating . | . . . Part Schematics Acquired 1 | . 1 . Parts Built . | . . . Matter . | . . . Time . | . . . Total Part Build Rating . | . . . Parts Repaired . | . . . Time . | . . . Parts Recycled . | . . . Recycled Matter . | . . . Retrieved Matter . | . . . Retrieved Components . | . . . Parts Scanalyzed . | . . . Part Schematics Acquired . | . . . Parts Damaged . | . . . Bothacking | -11 -10 -10 ------------ Run | Scr Mat Min Used RIF Installer . | . . . Robots Hacked . | . . . Non-combat . | . . . Combat . | . . . Robot Hacks Applied . | . . . Relay Couplers Released . | . . . Robots Rewired . | . . . Allies Hacked . | . . . Hacks Repelled . | . . . Allies | -11 -10 -10 -------- Run | Scr Mat Min Total Allies . | . . . Largest Group . | . . . Highest-Rated Group . | . . . Highest-Rated Ally . | . . . Total Orders . | . . . Ally Attacks . | . . . Total Damage . | . . . Kills . | . . . Allies Corrupted . | . . . Allies Melted . | . . . Intel | -11 -10 -10 ------- Run | Scr Mat Min Robot Analysis Total 1 | . 1 . Derelict Logs Recovered 1 | . . 1 Drone Launches . | . . . Drone Recoveries . | . . . Exploration | -11 -10 -10 ------------- Run | Scr Mat Min Turns Passed 2807 | 144 1372 1291 Spaces Moved 1148 | 39 666 443 Core 5 | . . 5 Treads 910 | 37 666 207 Legs 233 | 2 . 231 Wheels . | . . . Hover . | . . . Flight . | . . . Fastest Speed 120 | 120 160 180 Average Speed 189 | 157 174 216 Slowest Speed 1200 | 160 180 1200 Overloaded Moves . | . . . Propulsion Burnouts . | . . . Robots Hopped . | . . . Cave-ins Triggered . | . . . Exploration Rate (%) 56 | 3 96 69 Regions Visited 2 Branch Regions 1 Pre-discovered Areas 1 | . . 1 Known Exits Taken . | . . . Unknown Exits Taken 2 | 1 1 . Scrap Searched 1 | . . 1 Spaces Dug 8 | . 8 . Terrain Destroyed 22 | . 13 9 Melee . | . . . Projectile 8 | . 8 . AOE 14 | . 5 9 Terrain Rammed . | . . . Walls Destroyed . | . . . Machines Disabled . | . . . Actions | -11 -10 -10 --------- Run | Scr Mat Min Total 1494 | 85 790 619 Wait 72 | 15 16 41 Move 1146 | 38 665 443 Hop . | . . . Pick Up 42 | 4 31 7 Fast Attach 6 | 1 1 4 Attach 12 | 2 1 9 Detach 1 | . 1 . Swap 21 | 1 8 12 Drop 35 | 5 21 9 Fire 158 | 19 46 93 Melee . | . . . Ram . | . . . Kick 1 | . . 1 Crush . | . . . Escape Stasis . | . . . Rewire . | . . . Trap . | . . . Miscellaneous . | . . . Route ------- -11/Scrapyard -10/Materials (discovered 4 exits: [*Mat x3] / *Min) -10/Mines History --------- Turn | Location | Event 14 | -11/Scrapyard | Discovered new exit (range 3) 145 | -11/Scrapyard | Entered Materials 267 | -10/Materials | Discovered new exit (range 16) 320 | -10/Materials | Build established: Mutant 413 | -10/Materials | Discovered new exit (range 16) 776 | -10/Materials | Build established: Hauler-Mutant 846 | -10/Materials | Discovered new exit (range 13) 1174 | -10/Materials | Discovered new exit (range 15) 1517 | -10/Materials | Entered Mines 1648 | -10/Mines | Excavation squad dispatched 1648 | -10/Mines | A large section of the Mines collapsed 1743 | -10/Mines | Found the Drone Emporium 1765 | -10/Mines | Found Prototype Device 1813 | -10/Mines | Core integrity fell below 50% 1898 | -10/Mines | Excavation squad dispatched 2112 | -10/Mines | Lost 3 parts (1p1n1w) 2148 | -10/Mines | Excavation squad dispatched 2398 | -10/Mines | Excavation squad dispatched 2648 | -10/Mines | Excavation squad dispatched 2682 | -10/Mines | Core integrity fell below 20% 2808 | -10/Mines | Destroyed by S-10 Pest with Light Assault Rifle Last Messages --------------- 02727_ Sml. Laser destroyed. 02732_ G-34 Mercenary destroyed. 02733_ Acquired 45 matter. 02734_ G-34 Mercenary destroyed. 02735_ Acquired 18 matter. 02736_ G-34 Mercenary destroyed. 02737_ Acquired 4 matter. 02738_ G-34 Mercenary destroyed. 02739_ Acquired 4 matter. 02742_ Acquired Sml. Laser. 02748_ Acquired 10 matter. 02757_ Dropped Aluminum Leg. 02766_ Acquired 29 matter. 02770_ Acquired 1 matter. 02771_ K-01 Serf collects debris. 02776_ Dropped Ion Engine. 02778_ Acquired 10 matter. 02779_ K-01 Serf collects debris. 02783_ K-01 Serf destroyed. 02784_ Acquired 4 matter. Map ----- +----------------------------------------------------+ | #???? ####????????????????????????????? | | #????# #????????????????????????????? | | ##?## #????????????????????????????? | | # ### #????????????????????????????? | | #### #?????????????????????????????? | | ???## #??????????????????????????????? | | ????## ##??????????????????????????????? | | ?????## ##???????????????????????????????? | | ?????## ##???????????????????????????????? | | ?????# #???????????????????????????????? | | ????## #??????????#????????????????????? | | ???## ##?????????? ????????????????????? | | ???# ##??????????? ????????????????????? | | ???# #???????????? ????????????????????? | | ???## ##??????????? ????????????????????? | | ????# ##?????????? ????????????????????? | | ????# #??####???? ????????????????????? | | ????## #### #???# #???????????????????? | | ??## ## #????# #???????????????????? | | ???## ##????# #???????????????????? | | ????## #?????# #???????????????????? | | ?????## #?????# #???????????????????? | | #??????# #????## #####???????????????? | | #??????# ##???#ss""" #???????????????? | | #??????## ## ##??# s""" #???????????????? | | #???????####### ##?# @"""!#???????????????? | | #?????????????##% ### ==!%#???????????????? | | #?????????????##%= ## =[==!#???????????????? | | #????????????## = ######%##???????????????? | | #????????????# =%%#????????????????? | | ##??????????##= !*%#????????????????? | | #?????????##=% ########????????????????? | | #????????## ![= #??????????????????????? | | #????????# #??????????????????????? | | #????????# #??????????????????????? | | #????????# ## #??????????????????????? | | #????????#% #### #??????????????????????? | | #???????# #?# #??????????????????????? | | #??????# #?# ##??#####???????????????? | | ####??????# ##?# ###??## ##???????#??????? | | ?????????? #???# #???## ##????? #??????? | | #??????## #???# #???# ##???? #??????? | | ##???? #???# #???# #???? ##?????? | | #### #???# #???# #??? ##????? | | #???# #??## #??? ##???? | | #???# #?## ##### #???? | | #%#### #????# ### % #???? | | # #?????? ##????# !% = #???? | | # #??????????????# %% ###%## #???? | | # ####??######???# ##### ##?#%#??? ##???? | +----------------------------------------------------+ Best States ------------- Heat Dissipation 25 Energy Generation 14 Energy Capacity 250 Matter Stores 300 Matter Capacity 300 Sight Range 16 Terrain Scan Range 16 Terrain Scan Density 10 Evasion (%) 40 Recoil Reduction 2 Item Schematics ----------------- Hcp. Storage Unit | -10/Materials | Hacked Robot Schematics ------------------ None Fabricated ------------ Nothing Alien Tech Used ----------------- None Achievements -------------- None Challenges ------------ None Game ------ Seed DisposableThiefRecalibrator Manual? 0 Play Time 00:27:05 Cumulative 23.1 hours Start 2020.10.09 @ 16:12:11 End 2020.10.09 @ 16:32:39 Sessions 1 Manual Loads 0 Difficulty Rogue Special Mode None Game No. 18 Rogue 18 Adventurer 0 Explorer 0 Win Type - Total 0 Types 0/0/0/0/0/0/0/0/0 Lore% 35 Gallery% 36 Achievement% 48 Wizard Run 0 Options --------- ASCII 0 Keyboard 1 Movement Numpad Keybinds 0 Fullscreen 1 Font 12/Terminus Map View 83x54 Tactical HUD 1 Map Filters NONE Filters NONE Steam 1 RUN: 8b86d8a2-48a9-43bd-a113-a917ed516ef7